[Event "FRA-ch Teams Top 16-B 2022"]
[Site "Chartres"]
[Date "2022.06.11"]
[Round "3.6"]
[White "Cornette, Matthieu"]
[Black "Louis, Thibault"]
[Result "1-0"]
[ECO "C41"]
[WhiteElo "2570"]
[BlackElo "2154"]
[Annotator "TA"]
[PlyCount "45"]
[EventDate "2022.06.09"]
[EventType "team-tourn"]
[EventCountry "FRA"]
[SourceTitle "playchess.com"]
[Source "ChessBase"]
[SourceQuality "1"]
[TimeControl "40/5400+30:1800+30"]

{[%evp 12,45,34,38,42,26,45,45,39,41,60,56,59,46,57,29,52,60,82,81,106,83,109,96,188,182,333,354,329,340,481,260,784,767,1220,1164]} 1. e4 {[%emt 0:00:04]} d6 {[%emt 0:01:51]} 2. d4 {[%emt 0:01:07]} Nf6 {[%emt 0:00:06]} 3. Nc3 {[%emt 1:30:49]} e5 {[%emt 0:00:04]} 4. Nf3 {[%emt 0:00:00]} Nbd7 {[%emt 0:00:07]} 5. Bc4 {[%emt 0:00:00]} Be7 {[%emt 0:00:06]} 6. a4 {[%emt 0:00:00]} O-O {[%emt 0:00:55]} 7. O-O {[%emt 0:00:00]} a6 {[%emt 0:01:57] C41: Philidor Defence.} 8. a5 {[%emt 0:00:00]} exd4 {[%emt 0:01:16] The old main line.} 9. Qxd4 {[%emt 0:00:00]} Ng4 {[%emt 0:03:41] White is slightly better.} 10. Nd5 {[%emt 0:00:00]} Nde5 {[%emt 0:05:15]} 11. Nxe5 {[%emt 0:00:00]} Nxe5 {[%emt 0:02:15] [#]} 12. Ba2 $146 {[%emt 0:00:00]} ({Predecessor:} 12. Bb3 Be6 13. Bf4 Ng6 14. Bg3 Bf6 15. Nxf6+ Qxf6 16. Qxf6 gxf6 17. Ra4 Bxb3 18. cxb3 {0-1 (74) Caruana,F (2709)-Vachier Lagrave,M (2703) Moscow 2010}) 12... Be6 {[%emt 0:08:57]} 13. f4 {[%emt 0:00:00]} c5 {[%emt 0:08:02]} 14. Qf2 {[%emt 0:00:00]} Nc6 {[%emt 0:04:56]} 15. Bd2 {[%emt 0:00:00] White is more active.} Bxd5 {[%emt 0:07:29]} 16. Bxd5 {[%emt 0:00:00]} Bf6 {[%emt 0:00:10]} 17. c3 {[%emt 0:00:00] Inhibits Nb4.} Nxa5 {[%emt 0:03:01] [#]} (17... Qd7 $16) 18. g4 $1 $18 {[%emt 0:00:00][%cal Bg2g4,Bg4g5][%mdl 32] Black must now prevent g5.} Kh8 $2 {[%emt 0:26:43]} (18... Qb6 {was necessary.} 19. b4 Nc6) 19. g5 {[%emt 0:00:00]} Be7 {[%emt 0:01:30]} 20. Qh4 {[%emt 0:00:00] aiming for f5.} g6 {[%emt 0:13:25]} (20... b5 $142 21. Bxa8 Nc4 22. Rxa6 Nxd2) 21. Qh6 {[%emt 0:09:00]} (21. f5 $142 {Threatens to win with f6.} Nc6 22. f6) 21... f5 {[%emt 0:04:40]} (21... Nc6 22. c4 Rc8) 22. Rf3 {[%emt 0:00:00] [#] White wants to mate with Rh3.} Rg8 {[%emt 0:00:44]} 23. c4 {[%emt 0:00:00] Weighted Error Value: White=0.17 (very precise) /Black=0.46} 1-0

[Event "FRA-ch Teams Top 16-B 2022"]
[Site "Chartres"]
[Date "2022.06.11"]
[Round "3.7"]
[White "Roubert, Emile"]
[Black "Goldsztejn, Gildas"]
[Result "1/2-1/2"]
[ECO "B60"]
[WhiteElo "2027"]
[BlackElo "2413"]
[Annotator "TA"]
[PlyCount "80"]
[EventDate "2022.06.09"]
[EventType "team-tourn"]
[EventCountry "FRA"]
[SourceTitle "playchess.com"]
[Source "ChessBase"]
[SourceQuality "1"]
[TimeControl "40/5400+30:1800+30"]

{[%evp 20,80,43,37,38,44,36,41,28,31,69,53,70,93,107,107,107,107,107,107,107,107,107,107,107,107,108,106,102,92,162,154,160,131,131,107,131,131,131,110,120,53,53,53,53,53,53,46,53,22,22,22,22,22,22,22,22,22,22,0,22,0,22]} 1. e4 {[%emt 0:00:04]} c5 {[%emt 0:00:15]} 2. Nf3 {[%emt 0:00:15]} Nc6 {[%emt 0:00:29]} 3. d4 {[%emt 0:00:25]} cxd4 {[%emt 0:00:09]} 4. Nxd4 {[%emt 0:00:05]} Nf6 {[%emt 0:00:12]} 5. Nc3 {[%emt 0:00:06]} d6 {[%emt 0:00:13]} 6. Bg5 {[%emt 0:00:32]} e6 {[%emt 0:00:20]} 7. Qd2 {[%emt 0:00:42]} a6 {[%emt 0:00:07]} 8. f4 {[%emt 0:01:00]} Qb6 {[%emt 0:06:54]} 9. Bxf6 {[%emt 0:16:35]} gxf6 {[%emt 0:00:07]} 10. Nb3 {[%emt 0:00:14]} Bd7 {[%emt 0:06:35]} 11. O-O-O {[%emt 0:01:19]} O-O-O {[%emt 0:04:10] B60: Sicilian: Richter-Rauzer: Unusual Black 6th moves and 6...Bd7 without 7 Qd2.} 12. Be2 {[%emt 0:06:13]} h5 {[%emt 0:00:25]} 13. Kb1 {[%emt 0:06:38]} Kb8 {[%emt 0:06:38] White is slightly better.} 14. Bf3 {[%emt 0:03:42]} Be7 {[%emt 0:18:26]} 15. h4 {[%emt 0:07:48]} Na5 {[%emt 0:08:52]} 16. Qe2 {[%emt 0:20:44]} Nxb3 {[%emt 0:01:36]} 17. axb3 {[%emt 0:00:55] [#]} Bb5 $146 {[%emt 0:16:25]} ({Predecessor:} 17... Qc5 18. f5 Rh7 19. Rhe1 Rdh8 20. Qd2 Bc8 21. Na4 Qc7 {½-½ (21) Forgues,F (2187)-Roser,K (2404) Barcelona 2015}) 18. Nxb5 {[%emt 0:07:37]} Qxb5 {[%emt 0:00:20]} 19. Qxb5 {[%emt 0:01:54]} axb5 {[%emt 0:00:12]} 20. b4 {[%emt 0:00:24]} Kc7 {[%emt 0:07:30]} 21. c3 {[%emt 0:03:31]} Rh7 {[%emt 0:04:14]} 22. Kc2 {[%emt 0:00:43]} Rg8 {[%emt 0:00:26]} 23. Rd2 {[%emt 0:03:26]} Rd8 {[%emt 0:03:35]} 24. Ra1 {[%emt 0:01:25]} f5 {[%emt 0:02:12]} (24... Bf8 $16 25. g3 Bh6) 25. exf5 $18 {[%emt 0:02:35]} Bxh4 {[%emt 0:00:38]} 26. fxe6 {[%emt 0:00:45] White is more active.} fxe6 {[%emt 0:00:05]} 27. Re2 {[%emt 0:01:17]} Bg3 {[%emt 0:03:20]} 28. Rxe6 {[%emt 0:01:12]} Bxf4 {[%emt 0:00:05]} 29. Rd1 {[%emt 0:01:53]} Rg8 {[%emt 0:07:49]} 30. Rf6 {[%emt 0:04:50]} (30. Rd4 $16 Rf7 31. Kb3 (31. Bxh5 Rxg2+ 32. Kb1 Rh7 $14)) 30... Be5 $14 {[%emt 0:00:49]} 31. Rf5 {[%emt 0:00:09]} h4 {[%emt 0:00:05]} 32. Bd5 {[%emt 0:01:11]} Rgg7 {[%emt 0:00:25]} 33. Rdf1 {[%emt 0:00:39]} Kb6 {[%emt 0:00:40]} 34. Rf8 {[%emt 0:01:58]} h3 {[%emt 0:01:36] The position is equal.} 35. gxh3 {[%emt 0:01:36]} Rxh3 {[%emt 0:00:02]} 36. R1f7 {[%emt 0:01:41]} Rhh7 {[%emt 0:00:14]} 37. Rxg7 {[%emt 0:01:28]} Rxg7 {[%emt 0:00:05]} 38. Be4 {[%emt 0:00:39]} Rg4 {[%emt 0:00:42]} 39. Bd5 {[%emt 0:00:21]} Rg7 {[%emt 0:00:12]} 40. Be4 {[%emt 0:00:23]} Rg4 {[%emt 0:00:08] Black defended with fortune.  Weighted Error Value: White=0.08 (flawless) /Black=0.07 (flawless)} 1/2-1/2

[Event "FRA-ch Teams Top 16-B 2022"]
[Site "Chartres"]
[Date "2022.06.11"]
[Round "3.8"]
[White "Guichard, Pauline"]
[Black "Bourgoin, Cecile"]
[Result "1-0"]
[ECO "A50"]
[WhiteElo "2377"]
[BlackElo "1682"]
[Annotator "TA"]
[PlyCount "35"]
[EventDate "2022.06.09"]
[EventType "team-tourn"]
[EventCountry "FRA"]
[SourceTitle "playchess.com"]
[Source "ChessBase"]
[SourceQuality "1"]
[TimeControl "40/5400+30:1800+30"]

{[%evp 9,35,8,42,23,60,56,56,48,74,53,50,53,70,55,52,40,51,47,75,80,83,68,58,53,268,255,265,266]} 1. d4 {[%emt 0:00:03]} Nf6 {[%emt 0:00:14]} 2. c4 {[%emt 0:00:10]} b6 {[%emt 0:00:14]} 3. Nc3 {[%emt 0:01:48]} Bb7 {[%emt 0:01:03]} 4. d5 {[%emt 0:01:29]} e6 {[%emt 0:20:06]} 5. a3 {[%emt 0:00:58]} d6 {[%emt 0:03:36]} 6. g3 {[%emt 0:05:18] A50: Queen's Fianchetto Defence (1 d4 Nf6 2 c4 b6).} Be7 {[%emt 0:00:43][%cal Ob6b5]} 7. Bg2 {[%emt 0:02:24]} Nbd7 {[%emt 0:01:14]} 8. Nf3 {[%emt 0:08:24][%cal Bg1f3,Bf3h4,Bh4f5][%mdl 32] White is slightly better.} O-O {[%emt 0:03:11]} 9. O-O {[%emt 0:01:11]} e5 {[%emt 0:05:03]} 10. b4 {[%emt 0:06:40] [#]} Rc8 $146 {[%emt 0:03:23]} ({Predecessor:} 10... h6 11. e4 Nh7 12. Be3 f5 13. exf5 Rxf5 14. Ne4 Rf8 15. Nfd2 Qe8 16. Rc1 Qg6 {0-1 (51) Zubov,A (2598)-Artemenko,O (2246) Chess.com INT 2021}) 11. Nb5 {[%emt 0:13:43] White is more active.} Ra8 {[%emt 0:09:22]} 12. Nh4 {[%emt 0:04:05]} a6 {[%emt 0:04:32]} 13. Nc3 {[%emt 0:00:07]} Ng4 {[%emt 0:03:01]} 14. Nf5 {[%emt 0:04:01]} Bg5 {[%emt 0:02:15]} 15. e4 {[%emt 0:17:37]} Bxc1 {[%emt 0:03:55]} 16. Qxg4 {[%emt 0:01:41][%csl Gf5][%cal Rg4g7]} Qg5 {[%emt 0:01:35] [#]} (16... Bg5 $1 $14) 17. Qe2 $1 $18 {[%emt 0:00:29]} g6 {[%emt 0:06:53]} 18. Nh4 {[%emt 0:01:11] Weighted Error Value: White=0.07 (flawless) /Black=0.34} ({Resist} 18. Rfxc1 $6 gxf5 19. Bh3 Nf6 $16) 1-0

[Event "FRA-ch Teams Top 16-B 2022"]
[Site "Chartres"]
[Date "2022.06.11"]
[Round "3.9"]
[White "Neiksans, Arturs"]
[Black "Donchenko, Alexander"]
[Result "0-1"]
[ECO "B51"]
[WhiteElo "2579"]
[BlackElo "2599"]
[Annotator "TA"]
[PlyCount "111"]
[EventDate "2022.06.09"]
[EventType "team-tourn"]
[EventCountry "FRA"]
[SourceTitle "playchess.com"]
[Source "ChessBase"]
[SourceQuality "1"]
[TimeControl "40/5400+30:1800+30"]

{[%evp 13,111,0,15,21,17,0,0,0,15,0,0,0,22,25,21,0,0,0,0,0,0,-27,-21,-12,-12,-12,-12,-14,-30,-24,-24,-27,0,0,0,-10,-14,-14,-7,0,-7,-112,-122,-119,-98,-105,-91,-192,-167,-216,-104,-197,-101,-228,-208,-212,-185,-279,-290,-562,-433,-549,-401,-756,-749,-718,-696,-689,-657,-620,-578,-741,-741,-733,-733,-733,-733,-733,-733,-723,-715,-697,-689,-730,-627,-1583,-1462,-4929,-4929,-29985,-29986,-29986,-29987,-29987,-29976,-29974,-29974,-6287,-2326,-1583]} 1. e4 {[%emt 0:00:03] Yermolinsky,Alex} c5 {[%emt 0:00:10]} 2. Nf3 {[%emt 0:00:08]} d6 {[%emt 0:00:09]} 3. Bb5+ {[%emt 0:00:15]} Nd7 {[%emt 0:00:21]} 4. d4 {[%emt 0:02:02]} cxd4 {[%emt 0:00:14]} 5. Qxd4 {[%emt 0:00:06]} a6 {[%emt 0:00:18]} 6. Bxd7+ {[%emt 0:00:37]} Bxd7 {[%emt 0:00:06]} 7. Nc3 {[%emt 0:00:11]} e5 {[%emt 0:00:36]} 8. Qd3 {[%emt 0:00:09] B51: Sicilian: Moscow Variation (3 Bb5+) without 3...Bd7.} Rc8 {[%emt 0:00:29]} 9. Nd2 {[%emt 0:06:25][%cal Bf3d2,Bd2f1,Bf1e3][%mdl 32]} Be6 {[%emt 0:10:12]} 10. Nf1 {[%emt 0:07:58] [#] The position is equal.} Bc4 $146 {[%emt 0:06:49]} ({Predecessor:} 10... Be7 11. Ne3 Nf6 12. O-O Qc7 13. a4 Qc5 14. Rd1 O-O 15. Bd2 Bd8 16. Nf5 Bxf5 17. exf5 {0-1 (39) Hammer,J (2629)-Svidler,P (2763) Palma de Mallorca 2017 CBM 182 [Yermolinsky,Alex ]}) 11. Qg3 {[%emt 0:11:48]} h5 {[%emt 0:11:11]} 12. Ne3 $1 {[%emt 0:09:19]} h4 {[%emt 0:00:44]} 13. Qf3 {[%emt 0:00:57]} Be6 {[%emt 0:10:35]} 14. h3 {[%emt 0:22:02]} Qf6 {[%emt 0:01:26]} 15. Qxf6 {[%emt 0:05:22]} Nxf6 {[%emt 0:00:25]} 16. Bd2 {[%emt 0:01:48]} Be7 {[%emt 0:02:23][%cal Of6e4]} 17. O-O-O {[%emt 0:06:28] [#]} Rxc3 $1 {[%emt 0:05:29]} 18. Bxc3 {[%emt 0:04:29]} Nxe4 {[%emt 0:00:30]} 19. Be1 {[%emt 0:00:04]} Bg5 $1 {[%emt 0:00:23]} 20. b3 {[%emt 0:06:09] Against Bc4} d5 {[%emt 0:18:36] Threatens to win with ...d4.} 21. Kb2 {[%emt 0:00:20]} Bxe3 {[%emt 0:03:36]} 22. fxe3 {[%emt 0:00:04]} f6 {[%emt 0:01:09]} 23. a4 {[%emt 0:01:53]} Kf7 {[%emt 0:01:05]} 24. a5 {[%emt 0:00:21]} g5 {[%emt 0:00:38]} 25. Rf1 {[%emt 0:01:03]} Kg6 {[%emt 0:03:23]} 26. Bb4 {[%emt 0:00:11]} f5 {[%emt 0:03:45]} 27. c4 {[%emt 0:02:39]} (27. Rg1 $11) 27... dxc4 $17 {[%emt 0:00:35]} 28. bxc4 {[%emt 0:00:07]} Bxc4 {[%emt 0:02:30]} 29. Rg1 {[%emt 0:00:28]} Bb5 {[%emt 0:02:19] Against Rd7. Black is more active.} 30. Rd5 {[%emt 0:03:16]} (30. Be7 $17 {keeps fighting.}) 30... Kf6 $19 {[%emt 0:07:35]} 31. Rgd1 {[%emt 0:00:19]} (31. Bd6 $142 Rc8 32. Bb4) 31... Bc6 {[%emt 0:00:16]} (31... Be2 $19 {and Black stays clearly on top.} 32. Re1 Ke6 33. Rxe5+ Kxe5 34. Rxe2 Rd8) 32. R5d3 {[%emt 0:02:13]} (32. Rd8 $17 Rxd8 33. Rxd8) 32... Re8 {[%emt 0:00:35]} (32... g4 $1 $19 33. Rc1 Ke6) 33. Be1 {[%emt 0:00:25] This costs White the game.} (33. Rd8 $17) 33... f4 {[%emt 0:02:08]} 34. exf4 {[%emt 0:01:09]} exf4 {[%emt 0:00:02]} 35. Ka3 {[%emt 0:02:03]} (35. Rd8 $142) 35... Kf5 {[%emt 0:00:30]} 36. Rd8 $2 {[%emt 0:02:11]} (36. Rc1) 36... Rxd8 {[%emt 0:01:10]} 37. Rxd8 {[%emt 0:00:05][%mdl 4096] Endgame KRB-KBN} Ng3 {[%emt 0:00:38]} 38. Rf8+ {[%emt 0:00:11]} Kg6 {[%emt 0:01:05]} 39. Rg8+ {[%emt 0:00:13]} Kh6 $1 {[%emt 0:00:57]} 40. Rh8+ {[%emt 0:00:10]} Kg7 $1 {[%emt 0:00:59]} 41. Bc3+ {[%emt 0:31:55]} Kf7 $1 {[%emt 0:31:19]} 42. Rh7+ {[%emt 0:00:00] [#]} Kg6 $1 {[%emt 0:00:00]} 43. Rg7+ {[%emt 0:00:00]} Kh6 {[%emt 0:00:00]} 44. Rg8 {[%emt 0:00:00]} Bxg2 {[%emt 0:00:00]} 45. Rh8+ {[%emt 0:00:00]} Kg6 {[%emt 0:00:00]} 46. Rg8+ {[%emt 0:00:00]} Kf5 {[%emt 0:00:00]} 47. Rf8+ {[%emt 0:00:00]} Ke6 {[%emt 0:00:00]} 48. Bf6 {[%emt 0:00:00]} g4 {[%emt 0:00:00]} 49. hxg4 {[%emt 0:00:00]} h3 {[%emt 0:00:00] White must now prevent ...h2.} 50. g5 {[%emt 0:00:00]} h2 {[%emt 0:00:00]} 51. g6 {[%emt 0:00:00]} h1=Q {[%emt 0:00:00]} 52. g7 {[%emt 0:00:00]} Qc1+ {[%emt 0:00:00]} 53. Kb4 {[%emt 0:00:00]} Qd2+ {[%emt 0:00:00]} 54. Bc3 {[%emt 0:00:00]} Qd6+ {[%emt 0:00:00]} 55. Kb3 {[%emt 0:00:46] [#]} Bd5+ $1 {[%emt 0:00:00]} 56. Kb2 {[%emt 0:00:11] Weighted Error Value: White=0.64/Black=0.06 (flawless)} 0-1

[Event "FRA-ch Teams Top 16-B 2022"]
[Site "Chartres"]
[Date "2022.06.11"]
[Round "3.10"]
[White "Solodovnichenko, Yuri"]
[Black "Marcelin, Cyril"]
[Result "1/2-1/2"]
[ECO "B35"]
[WhiteElo "2499"]
[BlackElo "2440"]
[Annotator "TA"]
[PlyCount "106"]
[EventDate "2022.06.09"]
[EventType "team-tourn"]
[EventCountry "FRA"]
[SourceTitle "playchess.com"]
[Source "ChessBase"]
[SourceQuality "1"]
[TimeControl "40/5400+30:1800+30"]

{[%evp 14,106,20,10,21,20,19,16,8,-16,4,16,15,8,21,0,8,-24,-19,-33,-33,-44,-36,-122,-112,-111,-109,-126,-126,-126,-126,-130,-124,-128,-125,-139,-135,-135,-135,-135,-134,-135,-131,-240,-240,-247,-253,-245,-243,-282,-143,-166,-166,-166,-153,-133,-121,-166,-117,-169,-86,-86,0,-86,-100,-100,-100,-283,-57,-60,-64,-78,-78,-78,0,-47,0,0,0,0,0,0,0,0,0,0,4,4,4,4,4,4,4,0,4]} 1. e4 {[%emt 0:00:02]} c5 {[%emt 0:03:49]} 2. Nf3 {[%emt 0:00:18]} g6 {[%emt 0:00:17]} 3. d4 {[%emt 0:00:16]} cxd4 {[%emt 0:00:10]} 4. Nxd4 {[%emt 0:01:12]} Bg7 {[%emt 0:01:02]} 5. Nc3 {[%emt 0:00:16]} Nc6 {[%emt 0:00:15]} 6. Be3 {[%emt 0:00:06]} Nf6 {[%emt 0:00:20]} 7. Bc4 {[%emt 0:00:16]} O-O {[%emt 0:00:18]} 8. Bb3 {[%emt 0:00:43]} Re8 {[%emt 0:01:09] B35: Sicilian: Accelerated Dragon with 5 Nc3: main line.} 9. O-O {[%emt 0:00:53]} d6 {[%emt 0:00:58]} 10. h3 {[%emt 0:03:44]} Na5 {[%emt 0:01:15]} 11. Nf3 {[%emt 0:03:11] [#]} Nxb3 $146 {[%emt 0:29:20]} ({Predecessor:} 11... b6 12. Re1 Nxb3 13. axb3 Bb7 14. Bg5 a6 15. Qd3 Qc7 16. Rad1 Rac8 17. Re2 b5 {0-1 (65) Valles Moreno,I (2432)-Espinosa Aranda,A (2453) Madrid 2018}) 12. axb3 {[%emt 0:00:17]} a6 {[%emt 0:00:50]} 13. Qd3 {[%emt 0:05:38]} Bd7 {[%emt 0:04:46][%cal Bc8d7,Bd7c6,Bc6d5][%mdl 32]} 14. Bd4 {[%emt 0:05:35]} Bc6 {[%emt 0:05:10]} 15. Qe3 {[%emt 0:02:28]} Qc8 {[%emt 0:07:49]} 16. e5 {[%emt 0:41:55]} Nd5 {[%emt 0:01:56]} 17. Nxd5 {[%emt 0:01:15]} Bxd5 {[%emt 0:00:03]} 18. exd6 {[%emt 0:02:02]} (18. Ne1 $15) 18... exd6 $17 {[%emt 0:00:42]} 19. Qc3 {[%emt 0:01:32]} Qxc3 {[%emt 0:03:55]} 20. bxc3 {[%emt 0:09:21]} Bxf3 {[%emt 0:01:11]} 21. gxf3 {[%emt 0:00:05]} Rac8 {[%emt 0:14:18]} 22. Bxg7 {[%emt 0:04:45]} Kxg7 {[%emt 0:00:02][%mdl 4096] Endgame KRR-KRR} 23. c4 {[%emt 0:00:05]} d5 $1 {[%emt 0:03:53]} 24. Ra4 {[%emt 0:00:11]} dxc4 {[%emt 0:01:00]} 25. bxc4 {[%emt 0:00:05]} Re2 {[%emt 0:01:43]} 26. Rb1 {[%emt 0:07:48]} Rc7 {[%emt 0:03:00]} 27. c3 {[%emt 0:03:00]} Rc2 {[%emt 0:00:38]} 28. Ra3 {[%emt 0:02:42]} (28. Rb3 $17) 28... Rxc4 $19 {[%emt 0:01:57]} 29. Rxb7 {[%emt 0:00:41]} R4xc3 {[%emt 0:00:10]} 30. Rxc3 {[%emt 0:00:09]} Rxc3 {[%emt 0:00:04] KR-KR} 31. Kg2 {[%emt 0:00:09]} Rc6 {[%emt 0:07:54] Inhibits Rb6.} (31... a5 $19 32. Ra7 Ra3) 32. Kg3 {[%emt 0:00:53]} Kf6 {[%emt 0:00:12]} 33. Ra7 {[%emt 0:01:27]} h5 {[%emt 0:00:13]} 34. f4 {[%emt 0:00:23]} Rc3+ {[%emt 0:01:09]} 35. f3 {[%emt 0:01:49]} Ra3 {[%emt 0:02:38]} (35... Rc6 $19 36. Ra8 Ke6) 36. Rc7 {[%emt 0:00:25]} (36. h4 $17 {was worth a try.}) 36... Re3 {[%emt 0:01:52]} (36... a5 $19 37. Rc6+ Kf5 38. Rc5+ Ke6 39. f5+ gxf5) 37. Rc5 {[%emt 0:02:40]} Ra3 {[%emt 0:01:15]} (37... Re1 $17 38. Ra5 Re6) 38. h4 {[%emt 0:00:31]} (38. Rc7 $1 $11 {remains equal.}) 38... Ra1 {[%emt 0:00:35]} 39. Rc6+ {[%emt 0:00:25] [#]} Kg7 $1 {[%emt 0:00:35]} 40. Rc5 $2 {[%emt 0:00:42] [#]} (40. f5 $17 {was necessary.}) 40... a5 $2 {[%emt 0:00:31]} ({Better is} 40... f5 $1 $19 41. Rc7+ Kf6) 41. f5 $15 {[%emt 0:30:23]} a4 {[%emt 0:31:12][%cal Ba5a4,Ba4a3,Ba3a2][%mdl 32]} 42. fxg6 {[%emt 0:00:00]} a3 {[%emt 0:00:00]} ({But not} 42... fxg6 $2 43. Kf4 $19) 43. Kf4 {[%emt 0:00:00]} a2 {[%emt 0:00:00] ( -> ...Rd1)} 44. Rc2 $1 {[%emt 0:00:00]} fxg6 {[%emt 0:00:00]} (44... Kxg6 $15 {was preferrable.} 45. Rc6+ f6) 45. Rd2 {[%emt 0:00:00] The position is equal.} Kf7 {[%emt 0:00:00]} 46. Rg2 {[%emt 0:00:00]} Ke7 {[%emt 0:00:00]} 47. Kg5 {[%emt 0:00:00]} Kf7 {[%emt 0:00:00]} 48. Kh6 {[%emt 0:00:00]} Rh1 {[%emt 0:00:00]} 49. Rxa2 {[%emt 0:00:00]} Rxh4 {[%emt 0:00:00]} 50. Kg5 {[%emt 0:00:00]} Rh3 {[%emt 0:01:25]} 51. Ra7+ {[%emt 0:00:00]} Ke6 {[%emt 0:00:44]} 52. Ra6+ {[%emt 0:00:00]} Kf7 {[%emt 0:00:33]} 53. Ra7+ {[%emt 0:00:00]} Ke6 {[%emt 0:00:06] Weighted Error Value: White=0.21 (precise) /Black=0.19 (very precise)} 1/2-1/2

[Event "FRA-ch Teams Top 16-B 2022"]
[Site "Chartres"]
[Date "2022.06.11"]
[Round "3.11"]
[White "Kulaots, Kaido"]
[Black "Hamitevici, Vladimir"]
[Result "1-0"]
[ECO "B12"]
[WhiteElo "2537"]
[BlackElo "2482"]
[Annotator "TA"]
[PlyCount "79"]
[EventDate "2022.06.09"]
[EventType "team-tourn"]
[EventCountry "FRA"]
[SourceTitle "playchess.com"]
[Source "ChessBase"]
[SourceQuality "1"]
[TimeControl "40/5400+30:1800+30"]

{[%evp 13,79,31,31,24,14,11,12,10,16,10,22,7,24,10,14,28,27,-16,-10,-22,-22,-15,32,0,52,0,19,20,25,20,12,4,16,18,21,29,41,0,0,-12,0,0,8,8,16,20,22,0,467,271,260,239,426,129,1028,821,814,806,790,751,856,433,29977,29980,29980,29981,29982,11820]} 1. e4 {[%emt 0:00:05]} c6 {[%emt 0:05:41]} 2. d4 {[%emt 0:00:26]} d5 {[%emt 0:00:05]} 3. e5 {[%emt 0:00:19]} Bf5 {[%emt 0:00:34]} 4. Nf3 {[%emt 0:00:22]} e6 {[%emt 0:00:09]} 5. Be2 {[%emt 0:00:05]} c5 {[%emt 0:05:50]} 6. Be3 {[%emt 0:01:36]} cxd4 {[%emt 0:00:06]} 7. Nxd4 {[%emt 0:00:15]} Ne7 {[%emt 0:00:05]} 8. Nd2 {[%emt 0:04:02] 8.0-0 injects fresh life into this line. B12: Caro-Kann: Advance Variation.} Nbc6 {[%emt 0:02:24]} 9. N2f3 {[%emt 0:00:41]} Bg4 {[%emt 0:12:43]} 10. O-O {[%emt 0:01:37] The position is equal.} a6 {[%emt 0:03:46]} 11. Rc1 {[%emt 0:11:47]} Bxf3 {[%emt 0:04:10]} 12. Nxf3 {[%emt 0:01:00]} (12. Bxf3 Nxe5 13. Re1 Qd7 $15) 12... g6 {[%emt 0:04:41]} 13. c3 {[%emt 0:07:35]} Bg7 {[%emt 0:02:04]} 14. Bf4 {[%emt 0:00:22]} h6 {[%emt 0:06:09] [#]} 15. h4 $146 {[%emt 0:32:48]} ({Predecessor:} 15. h3 g5 16. Bh2 Ng6 17. Re1 h5 18. Nd4 g4 19. Nxc6 bxc6 20. Qa4 gxh3 21. Qxc6+ Kf8 22. c4 Bh6 23. Rcd1 {½-½ (23) Knittel,M (2198)-Revell,P (2241) ICCF email 2016}) 15... g5 {[%emt 0:02:54]} 16. hxg5 {[%emt 0:00:51]} hxg5 {[%emt 0:01:16]} 17. Bxg5 {[%emt 0:01:16]} Nxe5 {[%emt 0:00:25]} (17... Qc7 $11 {is superior.}) 18. g3 {[%emt 0:04:29]} N5g6 {[%emt 0:09:19]} (18... Qd7 $11) 19. Kg2 {[%emt 0:04:12]} (19. c4 $14) 19... f6 {[%emt 0:01:10]} 20. Bd2 {[%emt 0:03:45]} Qd7 {[%emt 0:07:00]} 21. Qb3 {[%emt 0:01:08]} e5 {[%emt 0:04:52][%cal Be6e5,Be5e4][%mdl 32] [#] ( -> ...Qh3+)} 22. Rh1 {[%emt 0:00:28] Prevents Qh3+.} O-O-O $1 {[%emt 0:01:14]} 23. Qb6 {[%emt 0:03:57]} Nc6 {[%emt 0:13:28]} 24. b4 {[%emt 0:03:53] Active counter play!} f5 {[%emt 0:02:20][%cal Bf6f5,Bf5f4,Bf4f3][%mdl 32]} 25. b5 {[%emt 0:11:09]} (25. Bg5 $5 {[%cal Rg5d8]}) 25... axb5 {[%emt 0:00:06]} 26. Bxb5 {[%emt 0:00:32][%cal Ob5a6]} e4 {[%emt 0:02:25]} 27. Ng5 {[%emt 0:00:50]} f4 $132 {[%emt 0:00:39][%mdl 2048] Black is not holding back} 28. Rxh8 {[%emt 0:00:36]} f3+ {[%emt 0:02:49]} 29. Kg1 {[%emt 0:00:05] Bxc6 is the strong threat.} Rxh8 {[%emt 0:00:32]} 30. c4 {[%emt 0:02:54]} Nge5 $2 {[%emt 0:01:25][%mdl 8192]} (30... Bd4 $1 $11 31. Bxc6 Bxb6 32. Bxd7+ Kxd7 33. cxd5 Bxf2+ 34. Kxf2 Rh2+ 35. Ke3 (35. Ke1 Ne5 $17) 35... Re2+ 36. Kd4 Rxd2+ 37. Kxe4 f2) 31. cxd5 {[%emt 0:00:38]} (31. Bxc6 $142 Nxc6 32. cxd5 Qxd5 33. Bf4) 31... Qxd5 $18 {[%emt 0:00:10]} 32. Bf4 {[%emt 0:00:25] White threatens Bxc6 and mate. The board is on fire. A strong pair of Bishops.} Rh6 {[%emt 0:05:02]} (32... e3 33. Bxe3 Bf6) 33. Qc5 $2 {[%emt 0:01:48]} (33. Qa5 Kb8 34. Qb6 (34. Qa4 Nd4 $16) 34... e3 $18) (33. Bf1 $18 {and White stays clearly on top.}) 33... Qxa2 $2 {[%emt 0:00:52][%mdl 8192] Black cannot hold the game after this.} 34. Nxe4 {[%emt 0:00:31]} Qe6 {[%emt 0:00:23] Prevents Nd6+.} 35. Bxh6 {[%emt 0:00:13]} (35. Qa7 $2 {[#] gets mated.} Rh1+ $3 {[%mdl 512]} 36. Kxh1 Qh3+ 37. Kg1 Qg2#) 35... Bxh6 {[%emt 0:00:27]} 36. Rd1 {[%emt 0:00:29]} Qb3 {[%emt 0:00:42]} 37. Qd5 {[%emt 0:00:32]} Qc2 {[%emt 0:00:18]} (37... Qxd5 $18 38. Rxd5 Bg7 39. Nd6+ Kb8) 38. Bxc6 {[%emt 0:00:52] White mates.} Nxc6 {[%emt 0:00:04]} 39. Nc5 {[%emt 0:00:48]} Kb8 {[%emt 0:00:49]} 40. Qd6+ {[%emt 0:00:33] Weighted Error Value: White=0.36/Black=0.55} (40. Nd7+ $142 Kc8 41. Nb6+ Kb8 42. Qd6+ Ka7 43. Nc8+ Ka6 44. Qa3+ Na5 45. Rd6+ Qc6 46. Qd3+ b5 47. Qxf3) 1-0